Cogmind - Beta 13 @@@ ROGUE MODE // 2024.03.19 @ 15:12:29 Player: skye Result: Destroyed by H-61 Shepherd with Heavy Assault Cannon Performance ------------- Evolutions (3) 1500 Regions Visited (6) 1200 Robots Destroyed (57) 285 Value Destroyed (1464) 1464 Prototype IDs (7) 140 Alien Tech Used (0) 0 Bonus (500) 500 TOTAL SCORE: 5089 Bonus ------- Entered DSFs 500 Cogmind --------- Core Integrity 0/700 Matter 186/300 Energy 99/100 System Corruption 2% Temperature Cool (9) Movement Core (50) Location -7/DSF Parts ------- > --- POWER (2) -------- (None) > --- PROPULSION (3) --- (None) > --- UTILITY (5) ------ (None) > --- WEAPON (3) ------- (None) > --- INVENTORY (5) ---- Light Nuclear Core System Restoration Module Arc Projector Arc Projector Peak State ------------ > --- POWER ------------ Light Ion Engine > --- PROPULSION ------- Compact Wheel > --- UTILITY ---------- Compact Battery Improved Sensor Array Advanced Targeting Computer Improved Weapon Shielding Hacking Suite > --- WEAPON ----------- Arc Projector Arc Projector Heavy Laser > --- INVENTORY -------- Light Nuclear Core [Rating: 29] Favorites ----------- Power Light Ion Engine Engine Light Ion Engine Power Core Light Nuclear Core Propulsion Wheel Treads Light Treads Leg Aluminum Leg Wheel Wheel Hover Unit Airjet Utility Small Storage Unit Device Field Recycling Unit Storage Small Storage Unit Processor Advanced Targeting Computer Hackware Hacking Suite Protection Light Armor Plating Weapon Heavy Assault Rifle Energy Gun Arc Projector Ballistic Gun Heavy Assault Rifle Ballistic Cannon Gauss Cannon Launcher Mini Grenade Launcher Build | -11 -10 -10 -9 -8 -7 -7 ------- Run | Yrd Mat Min Mat Mat Fac DSF Slots Evolved 6 | . . . 2 2 2 . Power 1 | . . . . . 1 . Propulsion 1 | . . . 1 . . . Utility 3 | . . . 1 1 1 . Weapon 1 | . . . . 1 . . Parts Attached 99 | 6 3 10 29 38 4 9 Power 19 | 1 1 1 4 8 2 2 Engine 13 | 1 1 1 4 4 1 1 Core 6 | . . . . 4 1 1 Reactor . | . . . . . . . Propulsion 26 | 2 1 2 10 9 . 2 Treads 2 | . . . 2 . . . Leg 7 | 2 1 2 . . . 2 Wheel 14 | . . . 5 9 . . Hover 3 | . . . 3 . . . Flight . | . . . . . . . Utility 29 | 1 1 . 11 13 1 2 Device 15 | . 1 . 5 7 . 2 Storage 4 | 1 . . 1 2 . . Processor 1 | . . . . . 1 . Hackware 1 | . . . . 1 . . Protection 8 | . . . 5 3 . . Artifact . | . . . . . . . Weapon 25 | 2 . 7 4 8 1 3 Energy Gun 13 | 1 . 2 2 6 1 1 Energy Cannon . | . . . . . . . Ballistic Gun 10 | 1 . 5 1 2 . 1 Ballistic Cannon 1 | . . . . . . 1 Launcher 1 | . . . 1 . . . Special Weapon . | . . . . . . . Impact Weapon . | . . . . . . . Slashing Weapon . | . . . . . . . Piercing Weapon . | . . . . . . . Special Melee Weapon . | . . . . . . . Unidentified Prototypes 1 | . . . . 1 . . Parts Lost 51 | . . 5 2 27 . 17 Power 8 | . . 1 1 3 . 3 Propulsion 15 | . . 3 . 9 . 3 Utility 15 | . . . 1 7 . 7 Weapon 13 | . . 1 . 8 . 4 Highest Loss Streak 10 | . . 3 2 9 . 10 To Critical Strikes 1 | . . . . . . 1 Average Slot Usage (%) 81 | . 87 91 90 75 66 52 Engine 7 | . 14 9 10 4 7 4 Core 1 | . . . . 3 . 3 Leg 7 | . 28 24 3 . . 6 Wheel 10 | . . . 13 16 7 1 Hover 3 | . . . 12 . . . Device 11 | . 2 14 13 12 7 5 Storage 7 | . 14 14 3 5 7 4 Hackware 2 | . . . . 5 7 6 Protection 5 | . . . 11 6 7 2 Energy Gun 9 | . 14 10 9 7 15 5 Ballistic Gun 10 | . 14 17 10 8 . 3 Launcher 2 | . . . 1 4 . . Naked Turns 1 | . . . . . . 1 Heaviest Build 38 | 12 15 15 25 38 20 28 Greatest Support 40 | 20 20 20 36 36 16 40 Greatest Overweight (x) 10 | 1 . . 4 10 1 8 Average Overweight (x) . | . . . . . . . Largest Inventory Capacity 8 | 8 8 8 8 8 5 5 Average Capacity 6 | 6 8 8 5 5 5 5 Most Carried 8 | 4 5 8 8 7 4 5 Average Carried 4 | 2 4 7 5 3 1 4 Final Capacity 8 | 8 8 8 5 5 5 5 Final Carried 8 | 4 4 8 5 2 4 4 Class Distribution -------------------- 41% | Scavenger-Mutant 38% | Mutant 13% | Tank 6% | Scavenger-Tank Dominant Class ---------------- Mutant | -10/Materials Scavenger-Mutant | -10/Mines Scavenger-Mutant | -9/Materials Tank | -8/Materials Mutant | -7/Factory Mutant | -7/DSF Resources | -11 -10 -10 -9 -8 -7 -7 ----------- Run | Yrd Mat Min Mat Mat Fac DSF Matter Collected 1230 | 130 82 150 425 429 . 14 Remotely 56 | . . . 46 10 . . Salvage Created 2063 | . 111 247 579 1112 . 14 Parts 138 | . 8 16 39 74 . 1 Haulers Intercepted . | . . . . . . . Recyclers Shooed 4 | . . . 1 3 . . Parts Field Recycled 7 | . . . 7 . . . Retrieved Matter 34 | . . . 34 . . . Parts Self-Destructed . | . . . . . . . Prevented . | . . . . . . . Kills | -11 -10 -10 -9 -8 -7 -7 ------- Run | Yrd Mat Min Mat Mat Fac DSF Combat Hostiles Destroyed 43 | . 2 10 9 21 . 1 Guns 40 | . 2 10 9 18 . 1 Classes Destroyed 11 | . 2 1 4 3 . 1 Worker 5 | . 1 . 2 2 . . Builder 3 | . . . . 3 . . Tunneler 1 | . . . 1 . . . Recycler 4 | . . . 1 3 . . Watcher 1 | . . . 1 . . . Swarmer 13 | . . 6 . 7 . . Cutter 1 | . . . . . . 1 Grunt 19 | . 2 4 5 8 . . Brawler 1 | . . . . 1 . . Sentry 8 | . . . 4 4 . . Hunter 1 | . . . . 1 . . Best Kill Streak 7 | . 2 3 5 7 . 1 Combat Bots Only 5 | . 2 3 3 5 . 1 Max Kills in Single Turn 2 | . 1 1 1 2 . 1 Gunslinging 1 | . . . . 1 . . Exploded . | . . . . . . . Melee . | . . . . . . . Uniques/NPCs Destroyed . | . . . . . . . Combat | -11 -10 -10 -9 -8 -7 -7 -------- Run | Yrd Mat Min Mat Mat Fac DSF Hostile Shots Fired 530 | . 26 89 43 227 . 145 Missed 163 | . 11 24 10 64 . 54 Damage Taken 5545 | . 174 724 462 2338 . 1847 Core 1468 | . 21 122 107 490 . 728 Absorbed by Shields . | . . . . . . . Redirected to Shielding 239 | . . . . 117 . 122 Ignored by Resistances 85 | . . . . 85 . . Core Remaining (%) 56 | 100 . 42 73 10 . . Volleys Fired 221 | . 12 38 38 125 . 8 Largest 3 | . 2 2 2 2 . 3 Hottest 147 | . 70 70 85 119 . 147 Shots Fired 346 | . 24 75 71 158 . 18 Gun 344 | . 24 75 71 158 . 16 Cannon 2 | . . . . . . 2 Launcher . | . . . . . . . Special . | . . . . . . . Kinetic 190 | . 12 54 38 77 . 9 Thermal 111 | . 12 21 33 40 . 5 Explosive . | . . . . . . . Electromagnetic 45 | . . . . 41 . 4 Robot Hit Streak 12 | . 6 6 9 12 . 7 Robot Miss Streak 4 | . 2 3 3 4 . 4 Penetration Max . | . . . . . . . Secondary Targets 8 | . . 3 . 4 . 1 Max Gunslinging Chain 1 | . . 1 . 1 . 1 Shots Hit Robots 214 | . 13 41 43 109 . 8 Core Hits 94 | . 5 16 21 49 . 3 Critical Kills . | . . . . . . . Critical Parts Destroyed . | . . . . . . . Critical Strikes 6 | . . 2 2 2 . . Burn 6 | . . 2 2 2 . . Melee Attacks . | . . . . . . . Impact . | . . . . . . . Slashing . | . . . . . . . Piercing . | . . . . . . . Sneak Attacks . | . . . . . . . Combat Hostiles . | . . . . . . . Follow-up Attacks . | . . . . . . . Damage Inflicted 3179 | . 174 488 663 1642 . 212 Guns 3051 | . 174 485 641 1642 . 109 Cannons 27 | . . . . . . 27 Explosions 76 | . . . . . . 76 Melee . | . . . . . . . Ramming 25 | . . 3 22 . . . Kinetic 1626 | . 73 349 326 816 . 62 Thermal 1129 | . 101 136 315 461 . 116 Explosive . | . . . . . . . Electromagnetic 399 | . . . . 365 . 34 Impact . | . . . . . . . Slashing . | . . . . . . . Piercing . | . . . . . . . Highest Corruption 2 | . . . . . . 2 Average Corruption 2 | . . . . . . 2 Corruption Purged . | . . . . . . . Corruption Blocked . | . . . . . . . Effects 4 | . . . . . . 4 Matter Fused 1 | . . . . . . 1 Heat Flow Errors 1 | . . . . . . 1 Energy Discharges 1 | . . . . . . 1 Misfires 1 | . . . . . . 1 Overload Shots . | . . . . . . . Overflow Damage 6 | . . . . . . 6 Projectiles . | . . . . . . . Explosions 6 | . . . . . . 6 Melee . | . . . . . . . Knockbacks . | . . . . . . . Impact . | . . . . . . . Kinetic . | . . . . . . . Secondary . | . . . . . . . Self-Inflicted Damage 65 | . . . 10 . . 55 Shots 1 | . . . . . . 1 Rammed 2 | . . . 2 . . . Targets Rammed 5 | . . 3 2 . . . Kicked 3 | . . 3 . . . . Crushed . | . . . . . . . Highest Temperature 216 | . 162 48 56 177 . 216 Average Temperature 48 | . 74 22 20 63 . 60 Received Heat Transfer 1956 | . 96 309 246 1044 . 261 Siege Activations . | . . . . . . . Robots Corrupted 1 | . . . . 1 . . Combat Hostiles 1 | . . . . 1 . . Parts Fried 2 | . . . . 2 . . Impact Corruptions . | . . . . . . . Robots Melted 2 | . . . . 2 . . Combat Hostiles 2 | . . . . 2 . . Parts Melted 6 | . . 2 . 4 . . Heat Transferred 3097 | . 296 555 925 1147 . 174 Parts Sabotaged . | . . . . . . . Parts Stolen . | . . . . . . . Parts Stripped . | . . . . . . . Power Chain Reactions 1 | . . . . . . 1 Alert | -11 -10 -10 -9 -8 -7 -7 ------- Run | Yrd Mat Min Mat Mat Fac DSF Peak Influence 294 | . 61 243 185 294 53 49 Initial 69 | . . 23 16 69 53 37 Average 117 | . 18 157 109 158 53 13 Maximum Alert Level 1 | . . 1 . 1 . . Low Security (%) 83 | 100 100 73 100 68 100 100 Level 1 16 | . . 26 . 31 . . Level 2 . | . . . . . . . Level 3 . | . . . . . . . Level 4 . | . . . . . . . Level 5 . | . . . . . . . High Security . | . . . . . . . Max Security . | . . . . . . . Squads Dispatched 8 | . 2 . 2 2 . 2 Investigation 3 | . . . 1 2 . . Extermination . | . . . . . . . Reinforcement 5 | . 2 . 1 . . 2 Assault . | . . . . . . . Garrison . | . . . . . . . Intercept . | . . . . . . . Searches Triggered . | . . . . . . . Construction Impeded . | . . . . . . . Haulers Reinforced . | . . . . . . . Active Scanning Responses . | . . . . . . . Cargo Convoy Interrupts . | . . . . . . . Stealth | -11 -10 -10 -9 -8 -7 -7 --------- Run | Yrd Mat Min Mat Mat Fac DSF Distress Signals 5 | . . . 4 1 . . Communications Jammed . | . . . . . . . Distress Signals . | . . . . . . . Times Spotted 70 | . 6 11 14 29 . 10 Peak Tracking Total 7 | . 2 3 5 6 . 7 Tactical Retreats 2 | . . 1 . . . 1 Traps | -11 -10 -10 -9 -8 -7 -7 ------- Run | Yrd Mat Min Mat Mat Fac DSF Traps Triggered 4 | . . . . 1 . 3 Indirectly . | . . . . . . . Trap Hack Attempts . | . . . . . . . Triggered . | . . . . . . . Disarmed . | . . . . . . . Reprogrammed . | . . . . . . . Reused . | . . . . . . . Traps Extracted . | . . . . . . . Installed . | . . . . . . . Triggered . | . . . . . . . Machines | -11 -10 -10 -9 -8 -7 -7 ---------- Run | Yrd Mat Min Mat Mat Fac DSF Machines Disabled 1 | . . . . 1 . . Max in Single Turn 1 | . . . . 1 . . Machines Repaired . | . . . . . . . Machines Dismantled . | . . . . . . . Machines Sabotaged . | . . . . . . . Overloaded Fab Kills . | . . . . . . . Hacking | -11 -10 -10 -9 -8 -7 -7 --------- Run | Yrd Mat Min Mat Mat Fac DSF Machines Accessed 14 | . 1 . 6 6 1 . Terminals 12 | . 1 . 5 5 1 . Fabricators . | . . . . . . . Repair Stations . | . . . . . . . Recycling Units 1 | . . . 1 . . . Scanalyzers 1 | . . . . 1 . . Garrison Access . | . . . . . . . Total Hacks 43 | . 3 . 26 13 1 . Successful 18 | . 1 . 10 6 1 . Failed 25 | . 2 . 16 7 . . Catastrophic 10 | . 1 . 6 3 . . Database Lockouts . | . . . . . . . Manual 20 | . 3 . 12 5 . . Terminals 32 | . 3 . 18 10 1 . Fabricators . | . . . . . . . Repair Stations . | . . . . . . . Recycling Units 8 | . . . 8 . . . Scanalyzers 3 | . . . . 3 . . Garrison Access . | . . . . . . . Terminal Hacks 10 | . 1 . 4 4 1 . Record 1 | . . . . 1 . . Prototype ID Bank 3 | . . . 2 1 . . Open DSF 1 | . . . . . 1 . Terminal Index 3 | . 1 . 1 1 . . Alert Level 2 | . . . 1 1 . . Fabricator Hacks . | . . . . . . . Repair Station Hacks . | . . . . . . . Recycling Unit Hacks 6 | . . . 6 . . . Recycle Component 3 | . . . 3 . . . Process 1 | . . . 1 . . . Report Inventory 1 | . . . 1 . . . Retrieve Matter 1 | . . . 1 . . . Scanalyzer 2 | . . . . 2 . . Insert Component 1 | . . . . 1 . . Analyze 1 | . . . . 1 . . Garrison Access Hacks . | . . . . . . . Unauthorized Hacks . | . . . . . . . Terminals . | . . . . . . . Fabricators . | . . . . . . . Repair Stations . | . . . . . . . Recycling Units . | . . . . . . . Scanalyzers . | . . . . . . . Garrison Access . | . . . . . . . Data Cores Recovered . | . . . . . . . Used . | . . . . . . . Hacking Detections 12 | . 1 . 6 5 . . Full Trace Events 3 | . . . 2 1 . . Feedback Events . | . . . . . . . Feedback Blocked . | . . . . . . . Robot Schematics Acquired . | . . . . . . . Robots Built . | . . . . . . . Authchips . | . . . . . . . Time . | . . . . . . . Total Robot Build Rating . | . . . . . . . Part Schematics Acquired 1 | . . . . 1 . . Parts Built . | . . . . . . . Authchips . | . . . . . . . Time . | . . . . . . . Total Part Build Rating . | . . . . . . . Parts Repaired . | . . . . . . . Time . | . . . . . . . Parts Recycled 3 | . . . 3 . . . Recycled Matter 58 | . . . 58 . . . Retrieved Matter 58 | . . . 58 . . . Retrieved Components . | . . . . . . . Parts Scanalyzed 1 | . . . . 1 . . Part Schematics Acquired 1 | . . . . 1 . . Parts Damaged . | . . . . . . . Bothacking | -11 -10 -10 -9 -8 -7 -7 ------------ Run | Yrd Mat Min Mat Mat Fac DSF Used RIF Installer . | . . . . . . . Robots Hacked . | . . . . . . . Non-combat . | . . . . . . . Combat . | . . . . . . . Robot Hacks Applied . | . . . . . . . Relay Couplers Released . | . . . . . . . Fabnet Peak Effective % . | . . . . . . . Robots Rewired . | . . . . . . . Allies Hacked . | . . . . . . . Hacks Repelled . | . . . . . . . Allies | -11 -10 -10 -9 -8 -7 -7 -------- Run | Yrd Mat Min Mat Mat Fac DSF Total Allies . | . . . . . . . Largest Group . | . . . . . . . Highest-Rated Group . | . . . . . . . Highest-Rated Ally . | . . . . . . . Total Orders . | . . . . . . . Ally Attacks . | . . . . . . . Total Damage . | . . . . . . . Kills . | . . . . . . . Allies Corrupted . | . . . . . . . Allies Melted . | . . . . . . . Intel | -11 -10 -10 -9 -8 -7 -7 ------- Run | Yrd Mat Min Mat Mat Fac DSF Robot Analysis Total . | . . . . . . . Derelict Logs Recovered 1 | . . 1 . . . . Drone Launches . | . . . . . . . Drone Recoveries . | . . . . . . . Exploration | -11 -10 -10 -9 -8 -7 -7 ------------- Run | Yrd Mat Min Mat Mat Fac DSF Turns Passed 2854 | 61 263 434 749 1093 87 167 Spaces Moved 2061 | 44 182 249 758 673 79 76 Core 95 | 9 . . 4 71 . 11 Treads . | . . . . . . . Legs 518 | 35 182 249 5 . . 47 Wheels 1101 | . . . 402 602 79 18 Hover 347 | . . . 347 . . . Flight . | . . . . . . . Fastest Speed 50 | 50 120 120 52 80 100 50 Average Speed 100 | 111 120 120 75 111 100 153 Slowest Speed 550 | 120 120 120 250 550 115 450 Overloaded Moves . | . . . . . . . Propulsion Burnouts . | . . . . . . . Robots Hopped . | . . . . . . . Cave-ins Triggered . | . . . . . . . Exploration Rate (%) 31 | 3 20 50 35 41 2 69 Regions Visited 6 Branch Regions 1 Pre-discovered Areas 1 | . . 1 . . . . Known Exits Taken 1 | . . . . . 1 . Unknown Exits Taken 5 | 1 1 1 1 1 . . Scrap Searched . | . . . . . . . Spaces Dug . | . . . . . . . Terrain Destroyed 2 | . . . . . . 2 Melee . | . . . . . . . Projectile . | . . . . . . . AOE 2 | . . . . . . 2 Terrain Rammed . | . . . . . . . Walls Destroyed . | . . . . . . . Machines Disabled . | . . . . . . . Actions | -11 -10 -10 -9 -8 -7 -7 --------- Run | Yrd Mat Min Mat Mat Fac DSF Total 2493 | 53 203 313 872 856 86 110 Wait 18 | . . 8 10 . . . Move 2055 | 43 181 248 757 672 78 76 Hop . | . . . . . . . Pick Up 27 | 4 3 3 8 7 2 . Fast Attach 55 | 6 1 1 18 19 2 8 Attach 21 | . . 3 4 11 2 1 Detach 6 | . . . 2 1 2 1 Swap 24 | . 2 6 7 9 . . Drop 45 | . 4 3 26 12 . . Fire 221 | . 12 38 38 125 . 8 Melee . | . . . . . . . Ram 2 | . . . 2 . . . Kick 3 | . . 3 . . . . Crush . | . . . . . . . Escape Stasis 16 | . . . . . . 16 Rewire . | . . . . . . . Trap . | . . . . . . . Miscellaneous . | . . . . . . . Route ------- -11/Scrapyard -10/Materials -10/Mines -9/Materials (discovered 2 exits: *Mat x2) -8/Materials -7/Factory -7/DSF (discovered 1 exit: [*Fac]) History --------- Turn | Location | Event 10 | -11/Scrapyard | Discovered new exit (range 15) 62 | -11/Scrapyard | Entered Materials 107 | -10/Materials | Discovered new exit (range 7) 308 | -10/Materials | Build established: Mutant 325 | -10/Materials | Entered Mines 565 | -10/Mines | Lost 3 parts (2n1w) 574 | -10/Mines | Learned location of Zion (-6) 584 | -10/Mines | Core integrity fell below 50% 691 | -10/Mines | Discovered new exit (range 6) 722 | -10/Mines | Received a Rocket Launcher from a helpful Derelict 759 | -10/Mines | Entered Materials 759 | -9/Materials | Evolved 2 slots: Propulsion x1, Utility x1 902 | -9/Materials | Discovered new exit (range 13) 966 | -9/Materials | Build established: Scavenger-Mutant 1064 | -9/Materials | Discovered new exit (range 10) 1508 | -9/Materials | Entered another Materials area 1508 | -8/Materials | Evolved 2 slots: Utility x1, Weapon x1 2092 | -8/Materials | Lost 3 parts (1p2n) 2138 | -8/Materials | Lost 3 parts (1u2w) 2278 | -8/Materials | Lost 9 parts (1p3n2u3w) 2283 | -8/Materials | Core integrity fell below 50% 2346 | -8/Materials | Lost 4 parts (1n1u2w) 2533 | -8/Materials | Discovered new exit (range 15) 2553 | -8/Materials | Core integrity fell below 20% 2599 | -8/Materials | Lost 4 parts (1p1n1u1w) 2601 | -8/Materials | Entered Factory 2601 | -7/Factory | Evolved 2 slots: Power x1, Utility x1 2688 | -7/Factory | Identified exit to DSF 2688 | -7/Factory | Entered DSF 2728 | -7/DSF | Additional patrols routed to DSF 2780 | -7/DSF | Lost 7 parts (1p1n3u2w) 2794 | -7/DSF | Discovered new exit (range 13) 2828 | -7/DSF | Build established: Mutant 2844 | -7/DSF | Core integrity fell below 50% 2851 | -7/DSF | Core integrity fell below 20% 2855 | -7/DSF | Destroyed by H-61 Shepherd with Heavy Assault Cannon Last Messages --------------- System corrupted: FCS attempts to trigger Gauss Cannon. System corrupted: Gauss Cannon misfires. Penetrated by Slug. Imp. Titanium Leg destroyed. Slug penetrates Wall. System corrupted: Energy discharge (-101). Penetrated by Slug. C-30 ARC bursts open, deploying its payload. G-50 Soldier unfolds itself. G-47 Trooper unfolds itself. Penetrated by Slug. Gauss Cannon destroyed. Hacking Suite destroyed. Critical hit (Blast). Nuclear Core destroyed. Cooling System destroyed. Critical hit (Blast). Penetrated by Slug. Lgt. Angular Momentum Engine destroyed. Map ----- +----------------------------------------------------+ | | | | | ?????????????????????????????????????? | | ?????????????????????????????????????? | | ?????????????????????????????????????? | | ?????????????????????????????????????? | | ?????????????????????????????????????? | | ?????????????????????????????????????? | | #???????#########????????????????????? | | #########!! ]]#?###????????????????? | | ## #]]]# ! ]]# # ##""??????????? | | <"????????? | | "????????? | | ## #[[[### ### # ## "????????? | | ## #[[[### ###? #????????????????? | | #########! #??##????????????????? | | #??????#!! #????????????????????? | | #??????#!! #????????????????????? | | ##??????### ###????????????#???????? | | #??????#* !!#??????????? #???????? | | #??????#** !!#??????????? #???????? | | #??????#** !!#?????????? ????????? | | #####???### ###########?? ###??????? | | # #??!### ###[[[#[[[#? #??????? | | " #!!!## ##[[[#[[[## #??????? | | % h @ !!#??????? | | x % !!#??????? | | H g%g!#??????? | | " #!!!## a##!!!# ##g !!#??????? | | # #!!!### ###!!!# #? !!#??????? | | ###+#####?# #?#########? ###??????? | | [#??#????!! [??????????? ????????? | | [#??????#!! [??????????? #???????? | | [#??????#!! [??????????? #???????? | | ##??????### ##??????????? ##???????? | | [#???????? ???????????? ????????? | | [#???????? ???????????? ????????? | | ##??????? ???????????? #????????? | | #???#????## #???????????? #????????? | | ##[[# ### ??????????????"????????? | | ????????????????????????? | | ????????????????????????? | | ## # #==[[????????????????????????? | | #?###???#????????????????????????????? | | #????????????????????????????????????? | | ?????????????????????????????????????? | | ?????????????????????????????????????? | | ?????????????????????????????????????? | | ?????????????????????????????????????? | | ?????????????????????????????????????? | +----------------------------------------------------+ Best States ------------- Heat Dissipation 59 Energy Generation 27 Energy Capacity 440 Matter Stores 400 Matter Capacity 400 Sight Range 16 Robot Scan Range 15 Terrain Scan Density 10 Armor Coverage 300 Resistance: KI 20 Resistance: EX 25 Propulsion Shielding 66 Weapon Shielding 66 Evasion (%) 55 Targeting Accuracy 8 Offensive Hacking 10 Item Schematics ----------------- Hacking Suite | -8/Materials | Scanalyzed Robot Schematics ------------------ None Fabricated ------------ Nothing Alien Tech Used ----------------- None Achievements -------------- None Challenges ------------ None Game ------ Seed PointyLegPropulsion Manual? 0 Play Time 00:32:49 Cumulative 20.0 hours Start 2024.03.19 @ 14:38:10 End 2024.03.19 @ 15:12:29 Sessions 1 Manual Loads 0 Difficulty Rogue Special Mode None Game No. 16 Rogue 1 Adventurer 15 Explorer 0 Win Type - Total 0 Types 0/0/0/0/0/0/0/0/0 Lore% 18 Gallery% 28 Achievement% 22 Wizard Run 0 Options --------- Layout 1 ASCII 0 Keyboard 1 Movement Vi Keybinds 0 Fullscreen 1 Font 24/Terminus Map View 50x40 Zoom Use 0% Tactical HUD 0 Map Filters NONE Filters NONE Steam 1 RUN: f3456225-18b9-42dc-bcbb-9d8b66012525